bitfinex-derivatives/quotes_BTCF0:USTF0_20250429
["timestamp","ask_amount","ask_price","bid_price","bid_amount"]
[1745936677919,0.5716165,94836.0,94833.0,0.01441631]
[1745936678126,0.7449165,94836.0,94835.0,0.12105446]
[1745936679419,0.7449165,94836.0,94835.0,0.12405446]
[1745936680124,0.7449165,94836.0,94835.0,0.12505446]
[1745936680309,0.7449165,94836.0,94835.0,0.21655446]
[1745936688416,0.5341,94836.0,94832.0,0.00158168]
[1745936688621,0.2108232,94833.0,94832.0,0.00158168]
[1745936689123,0.2108565,94818.0,94817.0,0.00158199]
[1745936689323,0.5716565,94818.0,94817.0,0.00158199]
[1745936690121,0.5716565,94818.0,94817.0,0.12158199]
[1745936690524,0.5716565,94818.0,94817.0,0.12658199]
[1745936690722,0.6589565,94818.0,94817.0,0.21368199]
[1745936691733,0.6589565,94818.0,94817.0,0.21868199]
[1745936692421,0.6589565,94818.0,94817.0,0.30628199]
[1745936692821,0.6589565,94818.0,94817.0,0.21868199]
[1745936693022,0.2108677,94813.0,94812.0,0.15999915]
[1745936693924,0.3839677,94813.0,94812.0,0.15999915]
[1745936694126,0.3839677,94813.0,94812.0,0.16499915]
[1745936695027,0.3839677,94813.0,94812.0,0.16799915]
[1745936695532,0.210881,94807.0,94806.0,0.21505096]
[1745936695732,0.571681,94807.0,94806.0,0.21505096]
[1745936696532,0.5312,94807.0,94797.0,0.26757811]
[1745936696733,0.5312,94807.0,94788.0,0.0898]
[1745936696734,0.2109188,94790.0,94789.0,0.086]
[1745936697033,0.5717188,94790.0,94789.0,0.086]
[1745936697622,0.7421188,94790.0,94789.0,0.086]
[1745936697839,0.7421188,94790.0,94789.0,0.089]
[1745936698132,0.7421188,94790.0,94789.0,0.003]
[1745936698330,0.7421188,94790.0,94789.0,0.123]
[1745936699925,0.7431188,94790.0,94789.0,0.12]
[1745936701121,0.2109255,94787.0,94786.0,0.2104]
[1745936702229,0.2109255,94787.0,94786.0,0.2114]
[1745936703230,0.2109255,94787.0,94786.0,0.0924]
[1745936704337,0.2109255,94787.0,94786.0,0.2124]
[1745936709247,0.2109255,94787.0,94786.0,0.4233277]
[1745936709643,0.2109255,94787.0,94786.0,0.2124]
[1745936713738,0.2109255,94787.0,94786.0,0.122]
[1745936719044,0.2109255,94787.0,94786.0,0.3329277]
[1745936719746,0.2109255,94787.0,94786.0,0.122]
[1745936720143,0.2109255,94787.0,94786.0,0.2944]
[1745936723753,0.2636383,94796.0,94795.0,0.2109032]
[1745936724054,0.2636383,94796.0,94786.0,0.3999]
[1745936724055,0.2109144,94792.0,94791.0,0.3608]
[1745936724356,0.2109144,94792.0,94791.0,0.6132]
[1745936724656,0.2109144,94792.0,94791.0,0.2524]
[1745936725250,0.2109144,94792.0,94791.0,0.3724]
[1745936726146,0.2959144,94792.0,94791.0,0.3724]
[1745936726346,0.2109144,94792.0,94791.0,0.3724]
[1745936726547,0.2109144,94792.0,94791.0,0.5833166]
[1745936735352,0.0872,94799.0,94795.0,0.0527267]
[1745936735553,0.2981027,94799.0,94798.0,0.210901]
[1745936735753,0.2109027,94799.0,94798.0,0.210901]
[1745936736061,0.2108892,94804.0,94803.0,0.2108877]
[1745936736361,0.2108892,94804.0,94803.0,0.8370877]
[1745936736962,0.2938892,94804.0,94803.0,0.8370877]
[1745936737261,0.2958892,94804.0,94803.0,0.9570877]
[1745936737462,0.2988892,94804.0,94803.0,0.9570877]
[1745936738062,0.2958892,94804.0,94803.0,0.9570877]
[1745936738262,0.2938892,94804.0,94803.0,0.9580877]
[1745936740262,0.2938892,94804.0,94803.0,0.9570877]
[1745936745063,0.2938892,94804.0,94803.0,0.8668877]
[1745936745254,0.4730892,94804.0,94803.0,0.8668877]
[1745936745859,0.3819892,94804.0,94803.0,0.8668877]
[1745936746065,0.2938892,94804.0,94803.0,0.9573877]
[1745936746655,0.3819892,94804.0,94803.0,0.9573877]
[1745936748967,0.3819892,94804.0,94803.0,0.5659]
[1745936749258,0.4702892,94804.0,94803.0,0.7767899]
[1745936750167,0.4702892,94804.0,94803.0,0.4808]
[1745936750962,0.4702892,94804.0,94803.0,0.6916899]
[1745936752759,0.4702892,94804.0,94803.0,0.12]
[1745936754855,0.4722892,94804.0,94803.0,0.12]
[1745936755274,0.4742892,94804.0,94803.0,0.12]
[1745936755572,0.4722892,94804.0,94803.0,0.12]
[1745936756164,0.2108921,94802.0,94801.0,0.2108941]
[1745936756866,0.2108921,94802.0,94799.0,0.0527247]
[1745936756867,0.2108966,94800.0,94799.0,0.2636217]
[1745936757071,0.2108966,94800.0,94799.0,0.3836217]
[1745936757661,0.3820966,94800.0,94799.0,0.3836217]
[1745936758872,0.3830966,94800.0,94799.0,0.3836217]
[1745936759367,0.3840966,94800.0,94799.0,0.3836217]
[1745936761765,0.0845,94800.0,94799.0,0.3836217]
[1745936762160,0.2953966,94800.0,94799.0,0.5530217]
[1745936763673,0.2953966,94800.0,94799.0,0.3308988]
[1745936763865,0.2953966,94800.0,94799.0,0.12]
[1745936764271,0.3844966,94800.0,94799.0,0.12]
[1745936765561,0.3844966,94800.0,94799.0,0.3308988]
[1745936766369,0.1736,94800.0,94790.0,0.3608]
[1745936766567,0.1736,94800.0,94787.0,0.3608]
[1745936766568,0.052726,94797.0,94787.0,0.3608]
[1745936766772,0.210921,94789.0,94788.0,0.0836]
[1745936767173,0.210921,94789.0,94788.0,0.2036]
[1745936767777,0.384121,94789.0,94788.0,0.4145233]
[1745936768378,0.384121,94789.0,94788.0,0.4155233]
[1745936769074,0.384121,94789.0,94788.0,0.4165233]
[1745936769276,0.384121,94789.0,94776.0,0.0015826]
[1745936769277,0.2109344,94783.0,94776.0,0.0015826]
[1745936769481,0.2109344,94783.0,94777.0,0.21485348]
[1745936770868,0.2109344,94783.0,94776.0,0.0015826]
[1745936771675,0.2109344,94783.0,94782.0,0.00358257]
[1745936771976,0.3164384,94783.0,94782.0,0.00358257]
[1745936772571,0.2109344,94783.0,94782.0,0.21451917]
[1745936773176,0.2109344,94783.0,94782.0,0.33451917]
[1745936773379,0.2109344,94783.0,94782.0,0.50451917]
[1745936778178,0.2109344,94783.0,94782.0,0.29358257]
[1745936778682,0.2109344,94783.0,94782.0,0.50451917]
[1745936779278,0.2109344,94783.0,94782.0,0.29358257]
[1745936783484,0.2109344,94783.0,94782.0,0.00358257]
[1745936789278,0.2109344,94783.0,94782.0,0.21451917]
[1745936789680,0.2109344,94783.0,94782.0,0.00358257]
[1745936789989,0.2109344,94783.0,94782.0,0.09048257]
[1745936790191,0.2109344,94783.0,94782.0,0.21048257]
[1745936790886,0.2109344,94783.0,94782.0,0.51001917]
[1745936791184,0.2109344,94783.0,94782.0,0.39001917]
[1745936792186,0.2109344,94783.0,94782.0,0.51001917]
[1745936792988,0.2109344,94783.0,94782.0,0.29908257]
[1745936793382,0.2109344,94783.0,94782.0,0.51001917]
[1745936793887,0.195966,94785.0,94782.0,0.51001917]
[1745936793888,0.571721,94789.0,94788.0,0.2109233]
[1745936794185,0.2109322,94784.0,94783.0,0.3375457]
[1745936794386,0.2109322,94784.0,94783.0,0.5083457]
[1745936794793,0.2109322,94784.0,94783.0,0.24468]
[1745936795290,0.2109322,94784.0,94783.0,0.36468]
[1745936796279,0.2109322,94784.0,94783.0,0.28298]
[1745936796589,0.2109322,94784.0,94783.0,0.19488]
[1745936796790,0.3814322,94784.0,94783.0,0.121]
[1745936796983,0.3814322,94784.0,94783.0,0.122]
[1745936797183,0.3814322,94784.0,94783.0,0.002]
[1745936801595,0.3814322,94784.0,94783.0,0.0866]
[1745936802589,0.3814322,94784.0,94783.0,0.002]
[1745936807298,0.3814322,94784.0,94783.0,0.2129344]
[1745936807491,0.3814322,94784.0,94783.0,0.3764344]
[1745936808004,0.3814322,94784.0,94783.0,0.2129344]
[1745936808601,0.3814322,94784.0,94783.0,0.2979344]
[1745936809194,0.2946322,94784.0,94783.0,0.2979344]
[1745936809400,0.2946322,94784.0,94783.0,0.3833344]
[1745936810090,0.2946322,94784.0,94783.0,0.5033344]
[1745936811699,0.2946322,94784.0,94783.0,0.207]
[1745936812113,0.2946322,94784.0,94783.0,0.087]
[1745936812299,0.2946322,94784.0,94783.0,0.2979344]
[1745936812494,0.2946322,94784.0,94783.0,0.3866344]
[1745936814707,0.2946322,94784.0,94783.0,0.1757]
[1745936815002,0.2946322,94784.0,94783.0,0.002]
[1745936815205,0.3799322,94784.0,94783.0,0.002]
[1745936825899,0.2109478,94777.0,94776.0,0.00801713]
[1745936826108,0.21095,94776.0,94775.0,0.00105513]
[1745936826300,0.57175,94776.0,94775.0,0.00105513]
[1745936826501,0.57175,94776.0,94775.0,0.00898119]
[1745936827903,0.57175,94776.0,94775.0,0.01098119]
[1745936828403,0.57175,94776.0,94775.0,0.01398119]
[1745936828909,0.2109745,94765.0,94764.0,0.16123442]
[1745936829712,0.3866745,94765.0,94764.0,0.16123442]
[1745936829907,0.2109789,94763.0,94762.0,0.2945802]
[1745936830415,0.2109789,94763.0,94762.0,0.0836]
[1745936830609,0.2109811,94762.0,94761.0,0.01256605]
[1745936830811,0.2109856,94760.0,94759.0,0.0836]
[1745936831016,0.2109945,94756.0,94755.0,0.3007954]
[1745936831216,0.2109945,94756.0,94755.0,0.3843954]
[1745936831613,0.2109945,94756.0,94755.0,0.1734]
[1745936831816,0.2985945,94756.0,94755.0,0.1734]
[1745936832112,0.2985945,94756.0,94755.0,0.2934]
[1745936832312,0.2985945,94756.0,94755.0,0.52887994]
[1745936833321,0.2985945,94756.0,94755.0,0.53187994]
[1745936834218,0.2985945,94756.0,94755.0,0.32088324]
[1745936834719,0.2985945,94756.0,94755.0,0.53187994]
[1745936835320,0.2985945,94756.0,94755.0,0.32088324]
[1745936835912,0.2985945,94756.0,94755.0,0.53187994]
[1745936836113,0.2985945,94756.0,94755.0,0.32088324]
[1745936837313,0.2985945,94756.0,94755.0,0.53187994]
[1745936838410,0.2985945,94756.0,94755.0,0.53087994]
[1745936839010,0.2985945,94756.0,94755.0,0.52987994]
[1745936840416,0.2985945,94756.0,94755.0,0.31888324]
[1745936841513,0.3804945,94756.0,94755.0,0.31888324]
[1745936841709,0.3804945,94756.0,94755.0,0.22908324]
[1745936841908,0.3804945,94756.0,94755.0,0.1327551]
[1745936843909,0.7412945,94756.0,94755.0,0.1327551]
[1745936844125,0.2110101,94749.0,94748.0,0.0841]
[1745936844918,0.3899101,94749.0,94748.0,0.0841]
[1745936845117,0.3899101,94749.0,94748.0,0.2041]
[1745936845625,0.3899101,94749.0,94748.0,0.2081]
[1745936845816,0.3899101,94749.0,94748.0,0.2111]
[1745936846817,0.3899101,94749.0,94748.0,0.13507986]
[1745936849223,0.3899101,94749.0,94748.0,0.12907986]
[1745936849429,0.3899101,94749.0,94748.0,0.34109216]
[1745936849430,0.3014101,94749.0,94748.0,0.34109216]
[1745936849730,0.3014101,94749.0,94748.0,0.29977986]
[1745936852016,0.3014101,94749.0,94748.0,0.21657986]
[1745936857418,0.3014101,94749.0,94748.0,0.30567986]
[1745936857818,0.3014101,94749.0,94748.0,0.13007986]
[1745936859527,0.3014101,94749.0,94748.0,0.21447986]
[1745936861633,0.3014101,94749.0,94748.0,0.51639216]
[1745936861833,0.3014101,94749.0,94748.0,0.30537986]
[1745936863835,0.0904,94749.0,94748.0,0.51639216]
[1745936864136,0.2637584,94756.0,94755.0,0.2637353]
[1745936864426,0.3165091,94756.0,94755.0,0.2109878]
[1745936864732,0.39676725,94756.0,94755.0,0.2109878]
[1745936864930,0.10736379,94761.0,94760.0,0.2109856]
[1745936865234,0.31834719,94761.0,94760.0,0.2109856]
[1745936865423,0.10736379,94761.0,94760.0,0.2109856]
[1745936865624,0.13377117,94769.0,94760.0,0.2109856]
[1745936865625,0.13377117,94769.0,94768.0,0.2109678]
[1745936865818,0.13377117,94769.0,94768.0,0.2844478]
[1745936866019,0.2109598,94772.0,94771.0,0.2109611]
[1745936866832,0.2109554,94774.0,94773.0,0.2636909]
[1745936867028,0.16037243,94776.0,94775.0,0.2109522]
[1745936867220,0.37132243,94776.0,94775.0,0.2109522]
[1745936868031,0.37532243,94776.0,94775.0,0.2109522]
[1745936868220,0.37532243,94776.0,94775.0,0.3309522]
[1745936868628,0.21495,94776.0,94775.0,0.3309522]
[1745936868829,0.21095,94776.0,94775.0,0.12]
[1745936869829,0.21195,94776.0,94775.0,0.12]
[1745936870531,0.21295,94776.0,94775.0,0.12]
[1745936870730,0.30445,94776.0,94775.0,0.12]
[1745936871032,0.30345,94776.0,94775.0,0.12]
[1745936871229,0.30545,94776.0,94775.0,0.12]
[1745936871430,0.30745,94776.0,94775.0,0.12]
[1745936871929,0.30945,94776.0,94775.0,0.12]
[1745936874130,0.30545,94776.0,94775.0,0.12]
[1745936874335,0.30945,94776.0,94775.0,0.12]
[1745936874636,0.2109967,94755.0,94754.0,0.571799]
[1745936875037,0.2109967,94755.0,94752.0,0.1055006]
[1745936875038,0.0527513,94752.0,94747.0,0.00158316]
[1745936875238,0.2110101,94749.0,94748.0,0.00807986]
[1745936875535,0.2110101,94749.0,94748.0,0.2110123]
[1745936875730,0.2110101,94749.0,94748.0,0.2965123]
[1745936876239,0.2110101,94749.0,94748.0,0.4165123]
[1745936877341,0.2110101,94749.0,94748.0,0.4175123]
[1745936877534,0.2110101,94749.0,94748.0,0.2065]
[1745936877928,0.2110101,94749.0,94748.0,0.121]
[1745936878129,0.2110101,94749.0,94748.0,0.123]
[1745936880127,0.105544,94749.0,94717.0,0.21485348]
[1745936880436,0.2110658,94724.0,94717.0,0.21485348]
[1745936880639,0.2110658,94724.0,94722.0,0.00773107]
[1745936881337,0.3894658,94724.0,94723.0,0.28123442]
[1745936881548,0.3894658,94724.0,94723.0,0.28623442]
[1745936882036,0.3894658,94724.0,94723.0,0.28123442]
[1745936882239,0.3894658,94724.0,94723.0,0.28323442]
[1745936883328,0.3894658,94724.0,94723.0,0.122]
[1745936883527,0.3894658,94724.0,94723.0,0.123]
[1745936885830,0.3894658,94724.0,94723.0,0.122]
[1745936887133,0.3894658,94724.0,94723.0,0.12]
[1745936897440,0.2110658,94724.0,94723.0,0.331068]
[1745936903547,0.2110496,94733.0,94732.0,0.211048]
[1745936904246,0.2110496,94733.0,94732.0,0.331048]
[1745936904440,0.2110496,94733.0,94732.0,0.501448]
[1745936904646,0.2130496,94733.0,94732.0,0.501448]
[1745936905854,0.002,94733.0,94732.0,0.501448]
[1745936906046,0.002,94733.0,94732.0,0.607008]
[1745936906448,0.004,94733.0,94732.0,0.607008]
[1745936907045,0.2637567,94753.0,94752.0,0.2110034]
[1745936907248,0.0527435,94766.0,94763.0,0.2109767]
[1745936907452,0.0527435,94766.0,94762.0,0.0527447]
[1745936907453,0.3608,94768.0,94764.0,0.4757767]
[1745936907649,0.2124745,94765.0,94764.0,0.8365767]
[1745936907855,0.2124745,94765.0,94764.0,0.84881279]
[1745936908058,0.0015,94765.0,94764.0,0.96881279]
[1745936908259,0.13319507,94770.0,94769.0,0.2109656]
[1745936908563,0.0905,94797.0,94772.0,0.0527396]
[1745936908761,0.2109544,94777.0,94776.0,0.3608]
[1745936908965,0.2109544,94777.0,94776.0,0.21095]
[1745936909163,0.2109544,94777.0,94776.0,0.33095]
[1745936910663,0.2119544,94777.0,94776.0,0.33095]
[1745936911454,0.2119544,94777.0,94776.0,0.12]
[1745936911662,0.2119544,94777.0,94776.0,0.19324]
[1745936911855,0.2129544,94777.0,94776.0,0.20134261]
[1745936912056,0.3907544,94777.0,94776.0,0.20134261]
[1745936913259,0.3907544,94777.0,94776.0,0.12810261]
[1745936913466,0.3907544,94777.0,94776.0,0.20134261]
[1745936913859,0.3907544,94777.0,94776.0,0.12810261]
[1745936914670,0.3907544,94777.0,94776.0,0.12]
[1745936915964,0.3907544,94777.0,94776.0,0.0617065]
[1745936916160,0.2109834,94761.0,94760.0,0.07324]
[1745936917073,0.3851834,94761.0,94760.0,0.19324]
[1745936917278,0.3851834,94761.0,94760.0,0.19724]
[1745936917981,0.3881834,94761.0,94760.0,0.19524]
[1745936918676,0.3881834,94761.0,94760.0,0.203288]
[1745936918882,0.3901834,94761.0,94760.0,0.201288]
[1745936919380,0.3881834,94761.0,94760.0,0.201288]
[1745936919679,0.3901834,94761.0,94760.0,0.201288]
[1745936920070,0.3891834,94761.0,94760.0,0.201288]
[1745936920780,0.3871834,94761.0,94760.0,0.201288]
[1745936920976,0.3901834,94761.0,94760.0,0.201288]
[1745936921576,0.3881834,94761.0,94760.0,0.201288]
[1745936921780,0.3911834,94761.0,94760.0,0.201288]
[1745936922682,0.3881834,94761.0,94760.0,0.201288]
[1745936922883,0.3901834,94761.0,94760.0,0.201288]
[1745936923675,0.3003834,94761.0,94760.0,0.201288]
[1745936923879,0.2159834,94761.0,94760.0,0.7730736]
[1745936924481,0.2159834,94761.0,94760.0,0.8617736]
[1745936924684,0.2149834,94761.0,94760.0,0.8617736]
[1745936925179,0.004,94761.0,94760.0,0.8617736]
[1745936925984,0.0855,94774.0,94773.0,0.2109567]
[1745936926190,0.2636843,94779.0,94778.0,0.2636747]
[1745936926386,0.21095,94777.0,94776.0,0.2109484]
[1745936926579,0.21095,94777.0,94776.0,0.2996484]
[1745936926981,0.30115,94777.0,94776.0,0.2996484]
[1745936927182,0.30115,94777.0,94776.0,0.4196484]
[1745936927787,0.30315,94777.0,94776.0,0.4196484]
[1745936928194,0.30315,94777.0,94776.0,0.2087]
[1745936928397,0.38675,94777.0,94776.0,0.12]
[1745936928689,0.38875,94777.0,94776.0,0.12]
[1745936929187,0.38775,94777.0,94776.0,0.12]
[1745936929684,0.38575,94777.0,94776.0,0.12]
[1745936929881,0.38675,94777.0,94776.0,0.12]
[1745936930082,0.38775,94777.0,94776.0,0.12]
[1745936930589,0.47435,94777.0,94776.0,0.12]
[1745936932284,0.47835,94777.0,94776.0,0.12]
[1745936932680,0.47435,94777.0,94776.0,0.12]
[1745936932881,0.47835,94777.0,94776.0,0.12]
[1745936933085,0.47935,94777.0,94776.0,0.12]
[1745936933695,0.47535,94777.0,94776.0,0.12]
[1745936933888,0.47935,94777.0,94776.0,0.12]
[1745936934496,0.47535,94777.0,94776.0,0.12]
[1745936934686,0.47935,94777.0,94776.0,0.12]
[1745936938589,0.2109834,94761.0,94759.0,0.073]
[1745936938788,0.2109856,94760.0,94759.0,0.073]
[1745936939784,0.2109856,94760.0,94759.0,0.2839878]
[1745936940185,0.2109856,94760.0,94759.0,0.4039878]
[1745936940691,0.2109856,94760.0,94759.0,0.4924878]
[1745936941290,0.3005856,94760.0,94759.0,0.50022714]
[1745936941492,0.3015856,94760.0,94759.0,0.50022714]
[1745936942501,0.0527359,94779.0,94759.0,0.39477134]
[1745936942695,0.2994684,94769.0,94768.0,0.2109678]
[1745936943094,0.2994684,94769.0,94768.0,0.3309678]
[1745936943297,0.2994684,94769.0,94768.0,0.5031678]
[1745936943904,0.0885,94769.0,94768.0,0.5031678]
[1745936944108,0.01561963,98093.0,94768.0,0.5031678]
[1745936944109,0.0527271,94795.0,94783.0,0.2109344]
[1745936944310,0.2636426,94795.0,94794.0,0.2109055]
[1745936944494,0.2636419,94795.0,94794.0,0.2109032]
[1745936945195,0.2636419,94795.0,94794.0,0.3309032]
[1745936945396,0.2726419,94795.0,94794.0,0.3319032]
[1745936945703,0.2726419,94795.0,94794.0,0.5092032]
[1745936945904,0.2776419,94795.0,94794.0,0.5092032]
[1745936946204,0.01,94795.0,94794.0,0.5082032]
[1745936946508,0.2209077,94795.0,94794.0,0.52052437]
[1745936948797,0.3083077,94795.0,94794.0,0.52052437]
[1745936949105,0.3083077,94795.0,94794.0,0.30962117]
[1745936949408,0.2583077,94795.0,94794.0,0.34323107]
[1745936953104,0.2583077,94795.0,94794.0,0.13232117]
[1745936953504,0.2583077,94795.0,94794.0,0.12]
[1745936955009,0.3637997,94795.0,94794.0,0.12]
[1745936955202,0.2583077,94795.0,94794.0,0.12]
[1745936955914,0.2583077,94795.0,94794.0,0.3309099]
[1745936956110,0.2583077,94795.0,94794.0,0.4036699]
[1745936956906,0.2583077,94795.0,94794.0,0.4891699]
[1745936957101,0.2583077,94795.0,94794.0,0.5714699]
[1745936958313,0.2583077,94795.0,94794.0,0.36056]
[1745936959304,0.2583077,94795.0,94794.0,0.5714699]
[1745936959908,0.2583077,94795.0,94792.0,0.07276]
[1745936959909,0.2109099,94794.0,94792.0,0.07276]
[1745936960108,0.2978099,94794.0,94793.0,0.2109121]
[1745936961002,0.3008099,94794.0,94793.0,0.2109121]
[1745936961207,0.2109121,94793.0,94792.0,0.07276]
[1745936961408,0.2109255,94787.0,94786.0,0.0377277]
[1745936962115,0.2109255,94787.0,94786.0,0.1577277]
[1745936962304,0.3017255,94787.0,94786.0,0.1577277]
[1745936962510,0.6625255,94787.0,94786.0,0.12]
[1745936963313,0.6645255,94787.0,94786.0,0.12]
[1745936963612,0.3057255,94787.0,94786.0,0.12]
[1745936964211,0.6665255,94787.0,94786.0,0.12]
[1745936965929,0.6665255,94787.0,94786.0,0.3309277]
[1745936966216,0.3057255,94787.0,94786.0,0.3309277]
[1745936966807,0.3057255,94787.0,94786.0,0.12]
[1745936967816,0.6665255,94787.0,94786.0,0.12]
[1745936970619,0.6665255,94787.0,94786.0,0.3309277]
[1745936972110,0.6665255,94787.0,94786.0,0.12]
[1745936973119,0.2109344,94783.0,94782.0,0.01200155]
[1745936973319,0.2109366,94782.0,94781.0,0.07276]
[1745936973912,0.2109433,94779.0,94778.0,0.2109451]
[1745936974110,0.5717433,94779.0,94778.0,0.2109451]
[1745936974710,0.5717433,94779.0,94778.0,0.22293222]
[1745936975318,0.5717433,94779.0,94778.0,0.34293222]
[1745936977123,0.0834,94781.0,94778.0,0.34293222]
[1745936977332,0.0834,94781.0,94780.0,0.2109411]
[1745936977625,0.2943389,94781.0,94780.0,0.2109411]
[1745936978023,0.2943389,94781.0,94780.0,0.3849411]
[1745936978218,0.2943389,94781.0,94780.0,0.5049411]
[1745936979131,0.2963389,94781.0,94780.0,0.5049411]
[1745936980029,0.2963389,94781.0,94780.0,0.12]
[1745936980229,0.2963389,94781.0,94778.0,0.01198712]
[1745936980230,0.2109433,94779.0,94778.0,0.01198712]
[1745936980529,0.2109455,94778.0,94777.0,0.07276]
[1745936980725,0.2109522,94775.0,94774.0,0.2109536]
[1745936980919,0.2109522,94775.0,94774.0,0.2837136]
[1745936981829,0.2109522,94775.0,94774.0,0.29564942]
[1745936982229,0.2109522,94775.0,94774.0,0.29664942]
[1745936982631,0.0822,94778.0,94774.0,0.13843392]
[1745936982835,0.2931476,94778.0,94777.0,0.2109478]
[1745936983729,0.2931476,94778.0,94777.0,0.3795478]
[1745936984224,0.2931476,94778.0,94777.0,0.4995478]
[1745936985630,0.2931476,94778.0,94777.0,0.4136478]
[1745936986829,0.2931455,94778.0,94777.0,0.4979478]
[1745936987336,0.2931455,94778.0,94777.0,0.4136478]
[1745936989032,0.2931455,94778.0,94777.0,0.3309478]
[1745936991740,0.2931455,94778.0,94777.0,0.12]
[1745936991925,0.2931455,94778.0,94777.0,0.3309478]
[1745936992124,0.2931455,94778.0,94777.0,0.2109478]
[1745936992441,0.2109522,94775.0,94774.0,0.45688454]
[1745936993135,0.2109522,94775.0,94774.0,0.92315994]
[1745936993638,0.2109501,94777.0,94776.0,0.21095]
[1745936993933,0.2636766,94783.0,94780.0,0.0527347]
[1745936994132,0.2636766,94783.0,94782.0,0.5717366]
[1745936994330,0.2636766,94783.0,94782.0,0.6442566]
[1745936994538,0.2636766,94783.0,94782.0,0.7442366]
[1745936994739,0.2636766,94783.0,94782.0,0.8167566]
[1745936995238,0.2646766,94783.0,94782.0,0.8167566]
[1745936996944,0.2656766,94783.0,94782.0,0.8167566]
[1745936998942,0.3497766,94783.0,94782.0,0.8167566]
[1745937000737,0.0861,94783.0,94782.0,0.8167566]
[1745937001140,0.0861,94783.0,94782.0,0.9367566]
[1745937001330,0.2970344,94783.0,94782.0,0.9367566]
[1745937001531,0.2970344,94783.0,94782.0,0.568]
[1745937001730,0.2970344,94783.0,94782.0,0.7642566]
[1745937002036,0.2970344,94783.0,94782.0,0.55332]
[1745937002236,0.2970344,94783.0,94782.0,0.6442566]
[1745937002237,0.3839344,94783.0,94782.0,0.6442566]
[1745937002630,0.2970344,94783.0,94782.0,0.6442566]
[1745937003832,0.2970344,94783.0,94782.0,0.5717366]
[1745937004033,0.2970344,94783.0,94782.0,0.6442566]
[1745937004638,0.2970344,94783.0,94782.0,0.5717366]
[1745937004940,0.2970344,94783.0,94782.0,0.6442566]
[1745937007838,0.2970344,94783.0,94782.0,0.43332]
[1745937008041,0.21095,94776.0,94775.0,0.16123442]
[1745937008235,0.57175,94776.0,94775.0,0.16123442]
[1745937008845,0.75175,94776.0,94775.0,0.16123442]
[1745937009239,0.87175,94776.0,94775.0,0.16123442]
[1745937009744,0.2109633,94770.0,94769.0,0.21485348]
[1745937010241,0.3309633,94770.0,94769.0,0.21485348]
[1745937010638,0.5061633,94770.0,94769.0,0.21485348]
[1745937011039,0.2637257,94764.0,94763.0,0.2109779]
[1745937011532,0.5294257,94764.0,94763.0,0.2109779]
[1745937013248,0.0857,94764.0,94763.0,0.2109779]
[1745937013443,0.2966767,94764.0,94763.0,0.2109779]
[1745937013941,0.2966767,94764.0,94763.0,0.3804779]
[1745937014137,0.2976767,94764.0,94763.0,0.5004779]
[1745937014343,0.0867,94764.0,94763.0,0.5004779]
[1745937014540,0.0857,94764.0,94763.0,0.5004779]
[1745937014739,0.0527294,94791.0,94774.0,0.2109544]
[1745937015048,0.0527325,94785.0,94774.0,0.5717544]
[1745937015346,0.1745,94786.0,94774.0,0.7972664]
[1745937015545,0.2109443,94779.0,94774.0,0.7972664]
[1745937016149,0.4141,94775.0,94774.0,0.8818664]
[1745937017045,0.6250522,94775.0,94774.0,0.4808]
[1745937017248,0.4991,94775.0,94774.0,0.6917544]
[1745937017454,0.002,94775.0,94774.0,0.8695464]
[1745937018043,0.002,94775.0,94774.0,0.7640344]
[1745937018242,0.2129522,94775.0,94774.0,0.7640344]
[1745937018451,0.2119522,94775.0,94774.0,0.7670344]
[1745937018744,0.2109522,94775.0,94774.0,0.7710344]
[1745937019139,0.088,94776.0,94775.0,0.2109522]
[1745937019345,0.29895,94776.0,94775.0,0.3892522]
[1745937019541,0.088,94776.0,94775.0,0.3892522]
[1745937020148,0.0527314,94787.0,94775.0,0.3892522]
[1745937020149,0.2109309,94785.0,94784.0,0.2109322]
[1745937021843,0.2951309,94785.0,94784.0,0.2109322]
[1745937022042,0.2951309,94785.0,94784.0,0.2933322]
[1745937022252,0.2951309,94785.0,94784.0,0.3801322]
[1745937022552,0.2951309,94785.0,94784.0,0.3811322]
[1745937022850,0.0842,94785.0,94784.0,0.3811322]
[1745937023052,0.0015,94800.0,94799.0,0.2108988]
[1745937023347,0.0015,94800.0,94799.0,0.7494628]
[1745937023554,0.2123966,94800.0,94799.0,0.8131788]
[1745937023850,0.2108587,94818.0,94805.0,0.2108855]
[1745937024050,0.0846,94815.0,94805.0,0.2108855]
[1745937024350,0.2108676,94814.0,94805.0,0.31636549]
[1745937024557,0.2108709,94812.0,94805.0,1.88864549]
[1745937024849,0.10719679,94811.0,94805.0,2.07641675]
[1745937025353,0.003,94806.0,94805.0,2.19641675]
[1745937026159,0.004,94806.0,94805.0,2.19641675]
[1745937028847,0.004,94806.0,94805.0,2.09093676]
[1745937029047,0.2148832,94806.0,94805.0,2.09093676]
[1745937029246,0.004,94806.0,94805.0,2.09093676]
[1745937029757,0.004,94806.0,94805.0,2.01865676]
[1745937029962,0.004,94806.0,94805.0,2.09089676]
[1745937031750,0.0889,94810.0,94809.0,0.2108766]
[1745937031943,0.0889,94810.0,94809.0,0.6439166]
[1745937032147,0.2108616,94816.0,94815.0,0.2108632]
[1745937032560,0.0838,94822.0,94819.0,0.052713]
[1745937032754,0.0838,94822.0,94821.0,0.2108499]
[1745937032943,0.2635425,94831.0,94830.0,0.2108232]
[1745937033147,0.2108234,94833.0,94832.0,0.2108232]
[1745937033549,0.3844234,94833.0,94832.0,0.2108232]
[1745937033754,0.0527065,94832.0,94810.0,0.15455658]
[1745937033949,0.2108476,94822.0,94821.0,0.19224]
[1745937034149,0.2108476,94822.0,94821.0,0.07224]
[1745937034349,0.2108699,94812.0,94811.0,0.091]
[1745937034549,0.2108743,94810.0,94806.0,0.3608]
[1745937034753,0.2108743,94810.0,94809.0,0.07224]
[1745937035057,0.210881,94807.0,94806.0,0.3608]
[1745937035251,0.210881,94807.0,94806.0,0.43304]
[1745937035450,0.210881,94807.0,94806.0,0.3608]
[1745937035850,0.384481,94807.0,94806.0,0.3608]
[1745937036155,0.504481,94807.0,94806.0,0.3608]
[1745937036562,0.2109233,94788.0,94786.0,0.21485348]
[1745937036747,0.2109255,94787.0,94786.0,0.21485348]
[1745937036947,0.2109344,94783.0,94782.0,0.01328927]
[1745937037249,0.2109478,94777.0,94776.0,0.62939738]
[1745937037453,0.5717478,94777.0,94776.0,0.26859738]
[1745937038155,0.7773478,94777.0,94776.0,0.26859738]
[1745937038956,0.7793478,94777.0,94776.0,0.26859738]